[Event "Early-Titled-Tuesday-Blitz-June-18-2024"]
[Site "Chess.com"]
[Date "2024.06.18"]
[Round "6"]
[White "aeiiuu"]
[Black "Adar_07"]
[Result "1-0"]
[WhiteElo "2610"]
[BlackElo "2794"]
[TimeControl "180+1"]
[EndTime "9:10:29 PDT"]
[Termination "aeiiuu won by checkmate"]

1. c4 {[%clk 0:02:57.4]} 1... Nf6 {[%clk 0:02:59.4]} 2. d4 {[%clk 0:02:57.4]}
2... e6 {[%clk 0:02:59.3]} 3. Nc3 {[%clk 0:02:57.2]} 3... Bb4 {[%clk 0:02:59.5]}
4. g3 {[%clk 0:02:55.5]} 4... c5 {[%clk 0:02:58.4]} 5. dxc5 {[%clk 0:02:53.4]}
5... Na6 {[%clk 0:02:54]} 6. Bg2 {[%clk 0:02:53.6]} 6... Nxc5 {[%clk 0:02:53.6]}
7. Bd2 {[%clk 0:02:53.5]} 7... O-O {[%clk 0:02:20.6]} 8. Nf3 {[%clk 0:02:49.1]}
8... d5 {[%clk 0:02:16.7]} 9. cxd5 {[%clk 0:02:48]} 9... exd5 {[%clk 0:02:16.9]}
10. O-O {[%clk 0:02:43.9]} 10... d4 {[%clk 0:02:04.5]} 11. Nb5 {[%clk
0:02:43.2]} 11... Bxd2 {[%clk 0:02:00.2]} 12. Qxd2 {[%clk 0:02:44.1]} 12... d3
{[%clk 0:02:00.6]} 13. Rfd1 {[%clk 0:02:30.5]} 13... Bd7 {[%clk 0:01:47.1]} 14.
Nc3 {[%clk 0:02:16.9]} 14... dxe2 {[%clk 0:01:46.6]} 15. Qxe2 {[%clk 0:02:15.1]}
15... Re8 {[%clk 0:01:43.1]} 16. Qc4 {[%clk 0:02:14.9]} 16... Qb6 {[%clk
0:01:38.6]} 17. Ng5 {[%clk 0:01:29.7]} 17... Ne6 {[%clk 0:01:05.7]} 18. h4
{[%clk 0:00:59.7]} 18... h6 {[%clk 0:00:50.9]} 19. Nge4 {[%clk 0:00:47.8]} 19...
Nxe4 {[%clk 0:00:47.8]} 20. Nxe4 {[%clk 0:00:41.4]} 20... Bc6 {[%clk 0:00:37.9]}
21. Nd6 {[%clk 0:00:31.5]} 21... Bxg2 {[%clk 0:00:31.5]} 22. Kxg2 {[%clk
0:00:32.4]} 22... Red8 {[%clk 0:00:29.6]} 23. Nf5 {[%clk 0:00:28.1]} 23... Qxb2
{[%clk 0:00:27.5]} 24. Qg4 {[%clk 0:00:22.9]} 24... Qf6 {[%clk 0:00:25.3]} 25.
Rab1 {[%clk 0:00:22.1]} 25... b6 {[%clk 0:00:22.5]} 26. Qf3 {[%clk 0:00:21.3]}
26... Rxd1 {[%clk 0:00:18]} 27. Rxd1 {[%clk 0:00:19.4]} 27... Rd8 {[%clk
0:00:18]} 28. Re1 {[%clk 0:00:15.8]} 28... Kh8 {[%clk 0:00:14.8]} 29. Qg4 {[%clk
0:00:13.6]} 29... Kh7 {[%clk 0:00:12.8]} 30. Ne3 {[%clk 0:00:13.7]} 30... g6
{[%clk 0:00:12.3]} 31. Qe4 {[%clk 0:00:14.2]} 31... h5 {[%clk 0:00:12.5]} 32.
Nd5 {[%clk 0:00:14.1]} 32... Qb2 {[%clk 0:00:10.6]} 33. Re3 {[%clk 0:00:13.3]}
33... Qxa2 {[%clk 0:00:09.8]} 34. Nf6+ {[%clk 0:00:12.4]} 34... Kg7 {[%clk
0:00:07]} 35. Qe5 {[%clk 0:00:12.8]} 35... Qa5 {[%clk 0:00:06.8]} 36. Nxh5+
{[%clk 0:00:11.3]} 36... Kh6 {[%clk 0:00:04.9]} 37. Nf6 {[%clk 0:00:11.4]} 37...
Qxe5 {[%clk 0:00:03.6]} 38. Ng4+ {[%clk 0:00:12.1]} 38... Kg7 {[%clk 0:00:04.1]}
39. Nxe5 {[%clk 0:00:13]} 39... a5 {[%clk 0:00:02.2]} 40. Rf3 {[%clk 0:00:12.6]}
40... f5 {[%clk 0:00:01.9]} 41. Rb3 {[%clk 0:00:12.9]} 41... Rb8 {[%clk
0:00:01.4]} 42. Nc6 {[%clk 0:00:11.6]} 42... Rb7 {[%clk 0:00:01.5]} 43. Nxa5
{[%clk 0:00:12.3]} 43... Rc7 {[%clk 0:00:01.7]} 44. Rxb6 {[%clk 0:00:12.2]}
44... Nf8 {[%clk 0:00:02.3]} 45. Nc6 {[%clk 0:00:12.4]} 45... Rf7 {[%clk
0:00:02.9]} 46. Ne5 {[%clk 0:00:12.9]} 46... Rf6 {[%clk 0:00:03.3]} 47. Rb7+
{[%clk 0:00:13.5]} 47... Kg8 {[%clk 0:00:03.1]} 48. Kf3 {[%clk 0:00:13]} 48...
Re6 {[%clk 0:00:03.3]} 49. Kf4 {[%clk 0:00:12.9]} 49... Rd6 {[%clk 0:00:02.3]}
50. Kf3 {[%clk 0:00:12]} 50... Re6 {[%clk 0:00:01.9]} 51. Nc4 {[%clk 0:00:12.1]}
51... Re4 {[%clk 0:00:02]} 52. Ne3 {[%clk 0:00:12.2]} 52... Re6 {[%clk
0:00:02.5]} 53. Nd5 {[%clk 0:00:12.7]} 53... Rd6 {[%clk 0:00:02.3]} 54. Ne7+
{[%clk 0:00:12.8]} 54... Kh8 {[%clk 0:00:01.9]} 55. h5 {[%clk 0:00:12.7]} 55...
Re6 {[%clk 0:00:02.1]} 56. hxg6 {[%clk 0:00:11.1]} 56... Nxg6 {[%clk 0:00:01.8]}
57. Nxf5 {[%clk 0:00:11.8]} 57... Ne5+ {[%clk 0:00:02]} 58. Kg2 {[%clk
0:00:11.8]} 58... Nd3 {[%clk 0:00:02.9]} 59. Rb8+ {[%clk 0:00:11]} 59... Kh7
{[%clk 0:00:03.4]} 60. Rb7+ {[%clk 0:00:11.7]} 60... Kg6 {[%clk 0:00:03.8]} 61.
Nd4 {[%clk 0:00:12.2]} 61... Rf6 {[%clk 0:00:03.4]} 62. f4 {[%clk 0:00:12.4]}
62... Rd6 {[%clk 0:00:03.6]} 63. Nf3 {[%clk 0:00:12.8]} 63... Re6 {[%clk
0:00:01.9]} 64. Nh4+ {[%clk 0:00:12.2]} 64... Kh5 {[%clk 0:00:02.2]} 65. Rh7+
{[%clk 0:00:08.2]} 65... Kg4 {[%clk 0:00:02.7]} 66. Rg7+ {[%clk 0:00:08.9]}
66... Kh5 {[%clk 0:00:03.4]} 67. Kf3 {[%clk 0:00:07.3]} 67... Ne1+ {[%clk
0:00:03.1]} 68. Kf2 {[%clk 0:00:07.9]} 68... Nd3+ {[%clk 0:00:03.6]} 69. Kg2
{[%clk 0:00:08.6]} 69... Re2+ {[%clk 0:00:03.5]} 70. Kf3 {[%clk 0:00:07.8]}
70... Re6 {[%clk 0:00:02.1]} 71. g4+ {[%clk 0:00:07.1]} 71... Kxh4 {[%clk
0:00:02.7]} 72. Rh7+ {[%clk 0:00:07.9]} 72... Rh6 {[%clk 0:00:02.3]} 73. Rxh6#
{[%clk 0:00:08.8]} 1-0

[Event "Early-Titled-Tuesday-Blitz-June-18-2024"]
[Site "Chess.com"]
[Date "2024.06.18"]
[Round "6"]
[White "LewAnatol"]
[Black "sleeping_in_the_fire"]
[Result "1/2-1/2"]
[WhiteElo "2259"]
[BlackElo "2450"]
[TimeControl "180+1"]
[EndTime "9:10:31 PDT"]
[Termination "Game drawn by repetition"]

1. e4 {[%clk 0:03:00.9]} 1... c6 {[%clk 0:02:58.3]} 2. d4 {[%clk 0:03:00.4]}
2... d6 {[%clk 0:02:57.6]} 3. h3 {[%clk 0:02:58.1]} 3... g6 {[%clk 0:02:57.9]}
4. Nf3 {[%clk 0:02:58]} 4... Bg7 {[%clk 0:02:58.4]} 5. a4 {[%clk 0:02:57.9]}
5... Nd7 {[%clk 0:02:57.5]} 6. Bc4 {[%clk 0:02:54.3]} 6... e6 {[%clk 0:02:57]}
7. O-O {[%clk 0:02:42.6]} 7... d5 {[%clk 0:02:57.2]} 8. exd5 {[%clk 0:02:41.6]}
8... cxd5 {[%clk 0:02:56.6]} 9. Bd3 {[%clk 0:02:33.5]} 9... Ne7 {[%clk
0:02:56.8]} 10. Bg5 {[%clk 0:02:31.4]} 10... O-O {[%clk 0:02:54.6]} 11. Qd2
{[%clk 0:02:30.8]} 11... Qe8 {[%clk 0:02:14.1]} 12. Re1 {[%clk 0:02:22.4]} 12...
b6 {[%clk 0:02:11.8]} 13. Nc3 {[%clk 0:02:19.3]} 13... Bb7 {[%clk 0:02:11.6]}
14. Nb5 {[%clk 0:02:18.2]} 14... Qd8 {[%clk 0:01:45.1]} 15. Qb4 {[%clk
0:02:10.4]} 15... f6 {[%clk 0:01:43.2]} 16. Rxe6 {[%clk 0:02:08.1]} 16... fxg5
{[%clk 0:01:38.9]} 17. Qxe7 {[%clk 0:02:07]} 17... Qxe7 {[%clk 0:01:24.2]} 18.
Rxe7 {[%clk 0:02:06.6]} 18... Bc6 {[%clk 0:01:23.6]} 19. c3 {[%clk 0:02:01.4]}
19... a6 {[%clk 0:01:13.2]} 20. Nc7 {[%clk 0:01:57.2]} 20... Ra7 {[%clk
0:01:11.9]} 21. Ne6 {[%clk 0:01:55.2]} 21... Bf6 {[%clk 0:01:00.6]} 22. Rxd7
{[%clk 0:01:28.1]} 22... Bxd7 {[%clk 0:00:58.1]} 23. Nxf8 {[%clk 0:01:27.7]}
23... Kxf8 {[%clk 0:00:59]} 24. a5 {[%clk 0:01:20.8]} 24... b5 {[%clk 0:00:58]}
25. Re1 {[%clk 0:01:19.1]} 25... Bd8 {[%clk 0:00:56.1]} 26. Ne5 {[%clk 0:01:18]}
26... Bxa5 {[%clk 0:00:53.5]} 27. Nxd7+ {[%clk 0:01:11.9]} 27... Rxd7 {[%clk
0:00:53.3]} 28. Re6 {[%clk 0:01:11.5]} 28... Ra7 {[%clk 0:00:12]} 29. Rd6 {[%clk
0:01:11.1]} 29... Bc7 {[%clk 0:00:11.9]} 30. Rxd5 {[%clk 0:01:10.8]} 30... Ke7
{[%clk 0:00:12.4]} 31. Rxg5 {[%clk 0:01:05.7]} 31... Bf4 {[%clk 0:00:12.5]} 32.
Rc5 {[%clk 0:01:01.7]} 32... Bd6 {[%clk 0:00:09]} 33. Rc6 {[%clk 0:00:58.4]}
33... Kd7 {[%clk 0:00:09.1]} 34. Be4 {[%clk 0:00:57.8]} 34... a5 {[%clk
0:00:08.7]} 35. Rb6 {[%clk 0:00:56.3]} 35... b4 {[%clk 0:00:09]} 36. cxb4 {[%clk
0:00:50.8]} 36... axb4 {[%clk 0:00:09.9]} 37. Rb7+ {[%clk 0:00:50.7]} 37... Rxb7
{[%clk 0:00:10.5]} 38. Bxb7 {[%clk 0:00:50.6]} 38... Bf4 {[%clk 0:00:10.1]} 39.
b3 {[%clk 0:00:47.5]} 39... Kd6 {[%clk 0:00:09.4]} 40. Be4 {[%clk 0:00:46.5]}
40... Bd2 {[%clk 0:00:09.3]} 41. Kf1 {[%clk 0:00:45.6]} 41... Bc3 {[%clk
0:00:09.5]} 42. d5 {[%clk 0:00:45.8]} 42... Ke5 {[%clk 0:00:09.9]} 43. Bf3
{[%clk 0:00:44.9]} 43... h5 {[%clk 0:00:10.3]} 44. Ke2 {[%clk 0:00:44.1]} 44...
h4 {[%clk 0:00:10.7]} 45. g3 {[%clk 0:00:42.3]} 45... g5 {[%clk 0:00:10.4]} 46.
Bg2 {[%clk 0:00:40.8]} 46... Bd4 {[%clk 0:00:09.4]} 47. gxh4 {[%clk 0:00:27.1]}
47... gxh4 {[%clk 0:00:09.6]} 48. Kf3 {[%clk 0:00:22.5]} 48... Bc5 {[%clk
0:00:09.3]} 49. Ke2 {[%clk 0:00:17.1]} 49... Kf4 {[%clk 0:00:08.7]} 50. Bf1
{[%clk 0:00:15.2]} 50... Ke4 {[%clk 0:00:07.7]} 51. Bg2+ {[%clk 0:00:14.4]}
51... Kd4 {[%clk 0:00:08.3]} 52. d6 {[%clk 0:00:12.6]} 52... Bxd6 {[%clk
0:00:06.1]} 53. Bc6 {[%clk 0:00:12.2]} 53... Bc5 {[%clk 0:00:05]} 54. Bd7 {[%clk
0:00:11.9]} 54... Ke5 {[%clk 0:00:05.2]} 55. f3 {[%clk 0:00:08.9]} 55... Kf4
{[%clk 0:00:05.4]} 56. Bg4 {[%clk 0:00:08.1]} 56... Ke5 {[%clk 0:00:05.1]} 57.
Kd3 {[%clk 0:00:08.3]} 57... Kd5 {[%clk 0:00:05.5]} 58. f4 {[%clk 0:00:07.5]}
58... Bd6 {[%clk 0:00:05.6]} 59. f5 {[%clk 0:00:07.4]} 59... Ke5 {[%clk
0:00:06.2]} 60. Kc4 {[%clk 0:00:07]} 60... Kf6 {[%clk 0:00:06.4]} 61. Kd5 {[%clk
0:00:07.1]} 61... Bf8 {[%clk 0:00:07.3]} 62. Ke4 {[%clk 0:00:06.7]} 62... Be7
{[%clk 0:00:07.9]} 63. Kd5 {[%clk 0:00:06.4]} 63... Bf8 {[%clk 0:00:08.8]} 64.
Kc6 {[%clk 0:00:06.7]} 64... Ke5 {[%clk 0:00:08.9]} 65. Kd7 {[%clk 0:00:07]}
65... Bg7 {[%clk 0:00:07.9]} 66. Ke7 {[%clk 0:00:06.7]} 66... Bf6+ {[%clk
0:00:08.8]} 67. Kf7 {[%clk 0:00:06.7]} 67... Bh8 {[%clk 0:00:09.3]} 68. Kg6
{[%clk 0:00:06.7]} 68... Bf6 {[%clk 0:00:10.2]} 69. Kh5 {[%clk 0:00:06.1]} 69...
Kd6 {[%clk 0:00:10.5]} 70. Kg6 {[%clk 0:00:05.8]} 70... Ke5 {[%clk 0:00:11.4]}
71. Kf7 {[%clk 0:00:05.3]} 71... Bh8 {[%clk 0:00:10.9]} 72. Kg6 {[%clk
0:00:04.6]} 72... Bf6 {[%clk 0:00:09.7]} 1/2-1/2

[Event "Early-Titled-Tuesday-Blitz-June-18-2024"]
[Site "Chess.com"]
[Date "2024.06.18"]
[Round "6"]
[White "sammartin99"]
[Black "Andrey-Ivanov2011"]
[Result "1/2-1/2"]
[WhiteElo "2332"]
[BlackElo "2066"]
[TimeControl "180+1"]
[EndTime "9:10:31 PDT"]
[Termination "Game drawn - timeout vs insufficient material"]

1. d4 {[%clk 0:02:59.8]} 1... Nf6 {[%clk 0:01:54.6]} 2. c4 {[%clk 0:02:57.6]}
2... g6 {[%clk 0:01:54.1]} 3. Nf3 {[%clk 0:02:55.7]} 3... Bg7 {[%clk 0:01:53.8]}
4. Nc3 {[%clk 0:02:55.9]} 4... d5 {[%clk 0:01:53.3]} 5. Bg5 {[%clk 0:02:54.3]}
5... O-O {[%clk 0:01:51.4]} 6. Bxf6 {[%clk 0:02:42.6]} 6... Bxf6 {[%clk
0:01:52.3]} 7. Nxd5 {[%clk 0:02:41.9]} 7... Bg7 {[%clk 0:01:50.3]} 8. e3 {[%clk
0:02:40.7]} 8... e6 {[%clk 0:01:48.3]} 9. Nc3 {[%clk 0:02:40.4]} 9... c5 {[%clk
0:01:47.5]} 10. d5 {[%clk 0:02:23.5]} 10... Qa5 {[%clk 0:01:44]} 11. Qd2 {[%clk
0:02:23.2]} 11... exd5 {[%clk 0:01:43.6]} 12. Nxd5 {[%clk 0:02:15.8]} 12...
Qxd2+ {[%clk 0:01:41.2]} 13. Nxd2 {[%clk 0:02:10]} 13... Nc6 {[%clk 0:01:40.5]}
14. O-O-O {[%clk 0:02:08]} 14... Be6 {[%clk 0:01:39.1]} 15. Ne4 {[%clk
0:02:01.8]} 15... Bxd5 {[%clk 0:01:37.4]} 16. cxd5 {[%clk 0:01:58.6]} 16... Nb4
{[%clk 0:01:37.3]} 17. a3 {[%clk 0:01:57.1]} 17... Na6 {[%clk 0:01:00.7]} 18.
Bc4 {[%clk 0:01:43.8]} 18... Rab8 {[%clk 0:00:56.9]} 19. d6 {[%clk 0:01:33]}
19... b5 {[%clk 0:00:55.1]} 20. Bd5 {[%clk 0:01:32.7]} 20... Rfd8 {[%clk
0:00:53.4]} 21. Rd2 {[%clk 0:01:28.3]} 21... Kf8 {[%clk 0:00:52.7]} 22. Rhd1
{[%clk 0:01:26.4]} 22... f5 {[%clk 0:00:52.1]} 23. Ng5 {[%clk 0:01:24.5]} 23...
Rxd6 {[%clk 0:00:45.7]} 24. Ne6+ {[%clk 0:01:16.5]} 24... Kf7 {[%clk 0:00:37.9]}
25. Ba2 {[%clk 0:01:09.5]} 25... Rxd2 {[%clk 0:00:33.6]} 26. Rxd2 {[%clk
0:01:10.4]} 26... c4 {[%clk 0:00:33.9]} 27. Nf4 {[%clk 0:00:53.9]} 27... Nc5
{[%clk 0:00:28.6]} 28. Rd5 {[%clk 0:00:49]} 28... Ne4 {[%clk 0:00:25.9]} 29.
Rd7+ {[%clk 0:00:48.2]} 29... Kg8 {[%clk 0:00:23.3]} 30. f3 {[%clk 0:00:45]}
30... Nc5 {[%clk 0:00:20.1]} 31. Rxa7 {[%clk 0:00:44.8]} 31... g5 {[%clk
0:00:20.4]} 32. Nd5 {[%clk 0:00:40.5]} 32... Nd3+ {[%clk 0:00:20.5]} 33. Kc2
{[%clk 0:00:39.3]} 33... Bxb2 {[%clk 0:00:19.8]} 34. Ne7+ {[%clk 0:00:37.6]}
34... Kf8 {[%clk 0:00:19.1]} 35. Nxf5 {[%clk 0:00:36.7]} 35... Bh8 {[%clk
0:00:17.2]} 36. Rxh7 {[%clk 0:00:35.5]} 36... Be5 {[%clk 0:00:14.3]} 37. h4
{[%clk 0:00:26.7]} 37... gxh4 {[%clk 0:00:13.7]} 38. Rxh4 {[%clk 0:00:24.8]}
38... Ne1+ {[%clk 0:00:13.8]} 39. Kb1 {[%clk 0:00:20.8]} 39... Nxg2 {[%clk
0:00:13.4]} 40. Re4 {[%clk 0:00:19.2]} 40... Bf6 {[%clk 0:00:11.2]} 41. Kc1
{[%clk 0:00:16.8]} 41... Ne1 {[%clk 0:00:10.7]} 42. Bb1 {[%clk 0:00:16.1]} 42...
Nxf3 {[%clk 0:00:07.3]} 43. Re6 {[%clk 0:00:15.7]} 43... Bg7 {[%clk 0:00:03.5]}
44. Ra6 {[%clk 0:00:15.6]} 44... b4 {[%clk 0:00:02.6]} 45. axb4 {[%clk
0:00:15.2]} 45... Rxb4 {[%clk 0:00:03.2]} 46. Ra8+ {[%clk 0:00:15.9]} 46... Kf7
{[%clk 0:00:03.7]} 47. Ra7+ {[%clk 0:00:16.4]} 47... Kf6 {[%clk 0:00:04.2]} 48.
Nxg7 {[%clk 0:00:16.7]} 48... Ne5 {[%clk 0:00:04.7]} 49. Nf5 {[%clk 0:00:15.3]}
49... Rxb1+ {[%clk 0:00:03.5]} 50. Kxb1 {[%clk 0:00:14.7]} 50... Kxf5 {[%clk
0:00:04.4]} 51. Kc2 {[%clk 0:00:12.6]} 51... Ke4 {[%clk 0:00:04.9]} 52. Kd2
{[%clk 0:00:12.6]} 52... c3+ {[%clk 0:00:03.5]} 53. Ke2 {[%clk 0:00:11.7]} 53...
c2 {[%clk 0:00:03.8]} 54. Rc7 {[%clk 0:00:11.1]} 54... Nd3 {[%clk 0:00:01.9]}
55. Rxc2 {[%clk 0:00:09.9]} 55... Ne5 {[%clk 0:00:02.1]} 56. Ra2 {[%clk
0:00:09.5]} 56... Ng4 {[%clk 0:00:01.6]} 57. Ra4+ {[%clk 0:00:09.3]} 57... Kf5
{[%clk 0:00:02.5]} 58. Kf3 {[%clk 0:00:07.5]} 58... Ne5+ {[%clk 0:00:03.4]} 59.
Kg3 {[%clk 0:00:06.4]} 59... Nf7 {[%clk 0:00:04]} 60. Rf4+ {[%clk 0:00:05.7]}
60... Ke6 {[%clk 0:00:04]} 61. Kf3 {[%clk 0:00:03.1]} 61... Ne5+ {[%clk
0:00:04.3]} 62. Ke4 {[%clk 0:00:03.3]} 62... Nc6 {[%clk 0:00:04.6]} 63. Rh4
{[%clk 0:00:02.9]} 63... Ne7 {[%clk 0:00:04.6]} 64. Rh6+ {[%clk 0:00:02.8]}
64... Kf7 {[%clk 0:00:05.3]} 65. Rh7+ {[%clk 0:00:02.3]} 65... Ke6 {[%clk
0:00:05.6]} 66. Rxe7+ {[%clk 0:00:02.4]} 66... Kxe7 {[%clk 0:00:05.9]} 67. Ke5
{[%clk 0:00:02.9]} 67... Kd7 {[%clk 0:00:06.6]} 68. Kf6 {[%clk 0:00:02.8]} 68...
Kd6 {[%clk 0:00:06.5]} 69. e4 {[%clk 0:00:01.8]} 69... Kd7 {[%clk 0:00:06.8]}
1/2-1/2

[Event "Early-Titled-Tuesday-Blitz-June-18-2024"]
[Site "Chess.com"]
[Date "2024.06.18"]
[Round "6"]
[White "Anton_Demchenko"]
[Black "VerdeNotte"]
[Result "1/2-1/2"]
[WhiteElo "2982"]
[BlackElo "2859"]
[TimeControl "180+1"]
[EndTime "9:10:39 PDT"]
[Termination "Game drawn - insufficient material"]

1. e4 {[%clk 0:03:00.9]} 1... e5 {[%clk 0:02:57.9]} 2. Nf3 {[%clk 0:03:00.7]}
2... Nc6 {[%clk 0:02:58.2]} 3. Bc4 {[%clk 0:03:00.8]} 3... Nf6 {[%clk
0:02:58.4]} 4. d3 {[%clk 0:03:01.2]} 4... Bc5 {[%clk 0:02:58.6]} 5. Bg5 {[%clk
0:03:00.9]} 5... h6 {[%clk 0:02:58.2]} 6. Bh4 {[%clk 0:03:01.4]} 6... d6 {[%clk
0:02:58.6]} 7. c3 {[%clk 0:03:01.2]} 7... a5 {[%clk 0:02:53.6]} 8. Nbd2 {[%clk
0:02:58.1]} 8... Ba7 {[%clk 0:02:52.4]} 9. a4 {[%clk 0:02:57.1]} 9... Qe7 {[%clk
0:02:50.4]} 10. Qe2 {[%clk 0:02:40.4]} 10... Bd7 {[%clk 0:02:45.8]} 11. Bb5
{[%clk 0:02:33.2]} 11... g5 {[%clk 0:02:38.5]} 12. Bg3 {[%clk 0:02:33.4]} 12...
Nd8 {[%clk 0:02:38.8]} 13. d4 {[%clk 0:02:18]} 13... exd4 {[%clk 0:02:17.7]} 14.
Nxd4 {[%clk 0:02:16.1]} 14... c6 {[%clk 0:02:11.8]} 15. Bd3 {[%clk 0:02:16]}
15... Bxd4 {[%clk 0:02:07.8]} 16. cxd4 {[%clk 0:02:15.8]} 16... Ne6 {[%clk
0:02:08.7]} 17. Nc4 {[%clk 0:01:43.2]} 17... d5 {[%clk 0:01:42.9]} 18. Nd6+
{[%clk 0:01:32.6]} 18... Kf8 {[%clk 0:01:39.9]} 19. Be5 {[%clk 0:01:29.7]} 19...
Nf4 {[%clk 0:01:25]} 20. Bxf4 {[%clk 0:01:27.3]} 20... gxf4 {[%clk 0:01:25.1]}
21. e5 {[%clk 0:01:27.9]} 21... Ne8 {[%clk 0:01:07.4]} 22. Nxe8 {[%clk
0:01:26.4]} 22... Qb4+ {[%clk 0:01:04.2]} 23. Qd2 {[%clk 0:01:25.2]} 23... Kxe8
{[%clk 0:00:50]} 24. Qxb4 {[%clk 0:01:24.2]} 24... axb4 {[%clk 0:00:50.9]} 25.
Kd2 {[%clk 0:01:11.6]} 25... b6 {[%clk 0:00:47.3]} 26. g3 {[%clk 0:01:10.8]}
26... fxg3 {[%clk 0:00:43.9]} 27. hxg3 {[%clk 0:01:11.4]} 27... Ke7 {[%clk
0:00:37.3]} 28. b3 {[%clk 0:00:56.6]} 28... c5 {[%clk 0:00:21.5]} 29. Rac1
{[%clk 0:00:57.2]} 29... Rac8 {[%clk 0:00:15.5]} 30. Rh4 {[%clk 0:00:56.3]}
30... Be6 {[%clk 0:00:15.2]} 31. f4 {[%clk 0:00:43]} 31... c4 {[%clk 0:00:15.5]}
32. Bc2 {[%clk 0:00:43.7]} 32... cxb3 {[%clk 0:00:11.8]} 33. Bxb3 {[%clk
0:00:44.4]} 33... Rxc1 {[%clk 0:00:12.4]} 34. Kxc1 {[%clk 0:00:44.9]} 34... Rc8+
{[%clk 0:00:13]} 35. Kb2 {[%clk 0:00:42.4]} 35... Rg8 {[%clk 0:00:12]} 36. Bc2
{[%clk 0:00:42]} 36... Rxg3 {[%clk 0:00:07.6]} 37. f5 {[%clk 0:00:42.7]} 37...
b3 {[%clk 0:00:06.1]} 38. Bb1 {[%clk 0:00:33.6]} 38... Bd7 {[%clk 0:00:06.6]}
39. Rxh6 {[%clk 0:00:33.6]} 39... Bxa4 {[%clk 0:00:06.6]} 40. Rxb6 {[%clk
0:00:32]} 40... Rg2+ {[%clk 0:00:04]} 41. Ka3 {[%clk 0:00:32.2]} 41... Bd7
{[%clk 0:00:03.6]} 42. f6+ {[%clk 0:00:24.6]} 42... Kd8 {[%clk 0:00:03.7]} 43.
Rxb3 {[%clk 0:00:25.2]} 43... Rf2 {[%clk 0:00:03.2]} 44. Kb4 {[%clk 0:00:20.2]}
44... Be6 {[%clk 0:00:02.5]} 45. Kc5 {[%clk 0:00:19.3]} 45... Kc7 {[%clk
0:00:02.7]} 46. Ra3 {[%clk 0:00:19.2]} 46... Rb2 {[%clk 0:00:02.7]} 47. Bd3
{[%clk 0:00:17.2]} 47... Kb7 {[%clk 0:00:02.8]} 48. Ba6+ {[%clk 0:00:16.9]}
48... Kc7 {[%clk 0:00:03]} 49. Bd3 {[%clk 0:00:16.9]} 49... Kb7 {[%clk
0:00:03.6]} 50. Ra5 {[%clk 0:00:15.6]} 50... Rd2 {[%clk 0:00:03.6]} 51. Rb5+
{[%clk 0:00:13.5]} 51... Kc7 {[%clk 0:00:04]} 52. Rb3 {[%clk 0:00:14.4]} 52...
Rd1 {[%clk 0:00:03.8]} 53. Kb4 {[%clk 0:00:13.7]} 53... Kb6 {[%clk 0:00:03.3]}
54. Kc3+ {[%clk 0:00:13.8]} 54... Kc7 {[%clk 0:00:03.8]} 55. Bc2 {[%clk
0:00:13.8]} 55... Rh1 {[%clk 0:00:03.4]} 56. Rb4 {[%clk 0:00:08.1]} 56... Rh3+
{[%clk 0:00:02.8]} 57. Kd2 {[%clk 0:00:07.9]} 57... Rh2+ {[%clk 0:00:02]} 58.
Kc1 {[%clk 0:00:08.6]} 58... Rh3 {[%clk 0:00:02.9]} 59. Ra4 {[%clk 0:00:08.2]}
59... Rh2 {[%clk 0:00:03.2]} 60. Ra7+ {[%clk 0:00:07.7]} 60... Kb6 {[%clk
0:00:03.7]} 61. Re7 {[%clk 0:00:08]} 61... Kb5 {[%clk 0:00:04.1]} 62. Bd3+
{[%clk 0:00:07.4]} 62... Kb4 {[%clk 0:00:04.4]} 63. Kd1 {[%clk 0:00:06.9]} 63...
Kc3 {[%clk 0:00:04.3]} 64. Bg6 {[%clk 0:00:07.2]} 64... Kxd4 {[%clk 0:00:03]}
65. Bxf7 {[%clk 0:00:07.2]} 65... Bxf7 {[%clk 0:00:03.5]} 66. Rxf7 {[%clk
0:00:08]} 66... Kxe5 {[%clk 0:00:04.1]} 67. Rf8 {[%clk 0:00:08.9]} 67... Rf2
{[%clk 0:00:03.5]} 68. f7 {[%clk 0:00:05.9]} 68... Kd4 {[%clk 0:00:03.8]} 69.
Ke1 {[%clk 0:00:05.7]} 69... Rf6 {[%clk 0:00:04.1]} 70. Kd1 {[%clk 0:00:05.9]}
70... Rf5 {[%clk 0:00:03.5]} 71. Ke1 {[%clk 0:00:06.4]} 71... Kd3 {[%clk
0:00:03.4]} 72. Rd8 {[%clk 0:00:05.5]} 72... Rxf7 {[%clk 0:00:03.6]} 73. Rxd5+
{[%clk 0:00:06.1]} 73... Ke4 {[%clk 0:00:04.3]} 74. Rd8 {[%clk 0:00:06.5]} 74...
Re7 {[%clk 0:00:04.8]} 75. Rd2 {[%clk 0:00:06.5]} 75... Ke5 {[%clk 0:00:05]} 76.
Re2+ {[%clk 0:00:06.8]} 76... Kd6 {[%clk 0:00:05.9]} 77. Rxe7 {[%clk 0:00:07.5]}
77... Kxe7 {[%clk 0:00:06.8]} 1/2-1/2